[Event "Czech Juniors Girls 2024"]
[Site "Jaromerice nad Rokytnou"]
[Date "2024.03.10"]
[Round "2.4"]
[White "Voriskova, Anna"]
[Black "Markina, Sofiia"]
[Result "0-1"]
[ECO "B15"]
[WhiteElo "1999"]
[BlackElo "1857"]
[Annotator "RC"]
[PlyCount "60"]
[EventDate "2024.03.10"]
[EventType "tourn"]
[EventCountry "CZE"]
[SourceTitle "playchess.com"]
[Source "ChessBase"]
[SourceQuality "1"]
[WhiteTeam "Czech Republic"]
[BlackTeam "Czech Republic"]
[WhiteTeamCountry "CZE"]
[BlackTeamCountry "CZE"]
[TimeControl "40/5400+30:1800+30"]

1. e4 {[%emt 0:00:04]} c6 {[%emt 0:00:06]} 2. d4 {[%emt 0:01:12]} d5 {[%emt 0:00:26]} 3. Nc3 {[%emt 0:00:58]} dxe4 {[%emt 0:00:20]} 4. Nxe4 {[%emt 0:00:11]} Nf6 {[%emt 0:00:26]} 5. Nxf6+ {[%emt 0:00:24]} exf6 {[%emt 0:00:08]} 6. c3 {[%emt 0:01:09]} Bd6 {[%emt 0:00:43]} 7. Bd3 {[%emt 0:00:46]} O-O {[%emt 0:00:21]} 8. Qc2 {[%emt 0:01:12]} Re8+ {[%emt 0:00:17]} 9. Ne2 {[%emt 0:00:36]} h5 {[%emt 0:00:25]} 10. O-O {[%emt 0:01:54]} Nd7 {[%emt 0:00:59]} 11. Be3 {[%emt 0:07:08]} Nf8 {[%emt 0:02:40]} 12. Rfe1 {[%emt 0:05:05]} Qc7 {[%emt 0:03:13]} 13. h3 {[%emt 0:00:47]} Be6 {[%emt 0:01:23]} 14. c4 {[%emt 0:02:08]} Qd7 {[%emt 0:00:37]} 15. Bf4 {[%emt 0:23:57]} Rad8 {[%emt 0:21:19]} 16. Rad1 {[%emt 0:03:32]} g6 {[%emt 0:00:33]} 17. Bxd6 {[%emt 0:16:49]} Qxd6 {[%emt 0:00:06]} 18. a3 {[%emt 0:02:28]} h4 {[%emt 0:04:12]} 19. b4 {[%emt 0:05:07]} Nh7 {[%emt 0:04:59]} 20. Nc3 {[%emt 0:06:15]} Ng5 {[%emt 0:01:55]} 21. Bxg6 {[%emt 0:06:30]} Bxh3 {[%emt 0:03:49]} 22. Bf5 {[%emt 0:09:13]} Bxg2 {[%emt 0:06:48]} 23. Kxg2 {[%emt 0:01:32]} Qf4 {[%emt 0:00:08]} 24. Rxe8+ {[%emt 0:00:40]} Rxe8 {[%emt 0:00:06]} 25. Qd3 {[%emt 0:00:54]} Kh8 {[%emt 0:01:38]} 26. Rg1 {[%emt 0:02:07]} Nf3 {[%emt 0:02:00]} 27. Ne2 {[%emt 0:00:49]} Rg8+ {[%emt 0:02:55]} 28. Kf1 {[%emt 0:00:01]} Rxg1+ {[%emt 0:00:50]} 29. Nxg1 {[%emt 0:00:00]} Qc1+ {[%emt 0:00:17]} 30. Kg2 {[%emt 0:00:23]} Ne1+ {[%emt 0:00:35]} 0-1

[Event "Czech Juniors Girls 2024"]
[Site "Jaromerice nad Rokytnou"]
[Date "2024.03.10"]
[Round "2.5"]
[White "Fizerova, Lucie"]
[Black "Nagyova, Daniela"]
[Result "0-1"]
[ECO "C58"]
[WhiteElo "1886"]
[BlackElo "1927"]
[Annotator "NA RC"]
[PlyCount "108"]
[EventDate "2024.03.10"]
[EventType "tourn"]
[EventCountry "CZE"]
[SourceTitle "playchess.com"]
[Source "ChessBase"]
[SourceQuality "1"]
[WhiteTeam "Czech Republic"]
[BlackTeam "Czech Republic"]
[WhiteTeamCountry "CZE"]
[BlackTeamCountry "CZE"]
[TimeControl "40/5400+30:1800+30"]

1. e4 {[%emt 0:00:04]} e5 {[%emt 0:00:16]} 2. Nf3 {[%emt 0:00:06]} Nc6 {[%emt 0:00:15]} 3. Bc4 {[%emt 0:00:10]} Nf6 {[%emt 0:00:37]} 4. Ng5 {[%emt 0:00:21]} d5 {[%emt 0:00:21]} 5. exd5 {[%emt 0:00:17]} Na5 {[%emt 0:00:47]} 6. Bb5+ {[%emt 0:00:15]} Bd7 {[%emt 0:00:37]} 7. Qe2 {[%emt 0:00:48]} Be7 {[%emt 0:00:32]} 8. Nf3 {[%emt 0:03:12] C58: Two Knights: 4 Ng5 d5 5 exd5 Na5 sidelines.} O-O {[%emt 0:15:55] 8...Nxd5 is the fancy move.} 9. Bxd7 {[%emt 0:01:55] 9.Nxe5 is not played anymore.} Qxd7 {[%emt 0:02:39]} 10. Nxe5 {[%emt 0:06:28]} Qxd5 {[%emt 0:02:45]} 11. O-O {[%emt 0:01:50]} Bd6 {[%emt 0:04:32]} 12. Nf3 {[%emt 0:01:10]} Rfe8 {[%emt 0:02:19]} 13. Qd1 {[%emt 0:01:55]} Qh5 $146 {[%emt 0:12:19]} ({Predecessor:} 13... c5 14. d3 Nc6 15. Bg5 Ng4 16. Nc3 Qf5 17. Ne4 Bc7 18. h3 Nge5 19. Nh4 Qc8 20. Nxc5 {½-½ Cuenca Jimenez,J (2558)-Romanishin,O (2415) Menorca op 1st 2022 (4)}) 14. Nc3 {[%emt 0:05:40]} Ng4 {[%emt 0:07:04]} 15. h3 {[%emt 0:05:05]} Ne5 {[%emt 0:01:51]} 16. Nd4 {[%emt 0:03:36]} Qg6 {[%emt 0:06:17]} 17. Ndb5 {[%emt 0:02:31]} Rad8 {[%emt 0:02:48]} 18. Nxd6 {[%emt 0:01:39]} Rxd6 {[%emt 0:00:48]} ({Black should play} 18... Qxd6 19. d3 c5) 19. d3 {[%emt 0:04:39]} Nac6 {[%emt 0:11:09]} 20. Bf4 {[%emt 0:11:50]} Nd4 {[%emt 0:04:59]} 21. Bg3 {[%emt 0:03:05]} h5 {[%emt 0:04:48]} 22. Kh1 {[%emt 0:05:40]} Nf5 {[%emt 0:04:51]} 23. Ne4 {[%emt 0:04:00]} Rd5 {[%emt 0:02:29]} 24. Qc1 {[%emt 0:04:13]} h4 {[%emt 0:04:52]} 25. Bh2 {[%emt 0:01:47]} Nd4 {[%emt 0:02:08]} 26. Nc3 {[%emt 0:04:57]} Rd7 {[%emt 0:01:12]} 27. Re1 {[%emt 0:02:00]} f6 {[%emt 0:02:22]} 28. Re4 {[%emt 0:02:26]} Qf5 {[%emt 0:01:12]} 29. Qd2 {[%emt 0:04:19]} Qh5 {[%emt 0:00:53]} 30. Rae1 {[%emt 0:02:50]} Ndf3 {[%emt 0:01:02]} 31. gxf3 {[%emt 0:01:49]} Qxf3+ {[%emt 0:00:05]} 32. Kg1 {[%emt 0:00:07]} Qxh3 {[%emt 0:00:49]} 33. Bxe5 {[%emt 0:00:52]} Rxe5 {[%emt 0:00:35]} 34. Qe3 $4 {[%emt 0:02:03]} (34. Rxe5 $18 {was the only winning move.} Qg4+ 35. Kh2 fxe5 36. Rxe5) 34... Rg5+ {[%emt 0:00:21]} 35. Qxg5 {[%emt 0:01:10]} fxg5 {[%emt 0:00:02]} 36. R1e3 {[%emt 0:01:54]} Qf5 {[%emt 0:00:02]} 37. Kg2 {[%emt 0:01:22]} Rf7 {[%emt 0:00:28]} 38. Nd1 {[%emt 0:00:07]} g4 {[%emt 0:00:56]} 39. Re8+ {[%emt 0:01:06]} Kh7 {[%emt 0:00:12]} 40. R8e5 {[%emt 0:00:34]} h3+ {[%emt 0:01:15]} 41. Kh1 {[%emt 0:31:41]} Qf6 {[%emt 0:07:08]} 42. Rh5+ {[%emt 0:00:00]} Kg6 {[%emt 0:00:23]} 43. Rhe5 {[%emt 0:00:00]} Qc6+ {[%emt 0:01:40]} 44. R5e4 {[%emt 0:00:00]} Re7 {[%emt 0:03:00]} 45. Nc3 $19 {[%emt 0:00:00]} Rxe4 {[%emt 0:02:40]} 46. Rxe4 {[%emt 0:00:00]} Qb6 {[%emt 0:04:20]} 47. Rxg4+ {[%emt 0:00:00]} Kh5 {[%emt 0:00:48]} 48. Rxg7 {[%emt 0:00:00]} Qxb2 {[%emt 0:01:00]} 49. Rxc7 {[%emt 0:00:00]} Qc1+ {[%emt 0:00:09]} 50. Nd1 {[%emt 0:00:00]} Qxd1+ {[%emt 0:00:53]} 51. Kh2 {[%emt 0:00:00]} Qf1 {[%emt 0:01:28]} 52. Rh7+ {[%emt 0:00:00]} Kg6 {[%emt 0:00:21]} 53. Rxh3 {[%emt 0:00:00]} Qxf2+ {[%emt 0:00:06]} 54. Kh1 {[%emt 0:00:00]} Qxc2 {[%emt 0:00:32]} 0-1

[Event "Czech Juniors Girls 2024"]
[Site "Jaromerice nad Rokytnou"]
[Date "2024.03.11"]
[Round "3.1"]
[White "Nagyova, Daniela"]
[Black "Trasakova, Adela"]
[Result "1/2-1/2"]
[ECO "B12"]
[WhiteElo "1927"]
[BlackElo "1935"]
[Annotator "RC"]
[PlyCount "60"]
[EventDate "2024.03.10"]
[EventType "tourn"]
[EventCountry "CZE"]
[SourceTitle "playchess.com"]
[Source "ChessBase"]
[SourceQuality "1"]
[WhiteTeam "Czech Republic"]
[BlackTeam "Czech Republic"]
[WhiteTeamCountry "CZE"]
[BlackTeamCountry "CZE"]
[TimeControl "40/5400+30:1800+30"]

1. e4 {[%emt 0:00:07]} c6 {[%emt 0:00:02]} 2. d4 {[%emt 0:00:21]} d5 {[%emt 0:00:03]} 3. e5 {[%emt 0:00:16]} Bf5 {[%emt 0:00:07]} 4. c4 {[%emt 0:00:26]} e6 {[%emt 0:00:33]} 5. Nc3 {[%emt 0:00:46]} h6 {[%emt 0:09:29]} 6. h4 {[%emt 0:07:04]} Ne7 {[%emt 0:01:59]} 7. g4 {[%emt 0:02:57]} Bh7 {[%emt 0:06:26]} 8. f4 {[%emt 0:03:02]} Nd7 {[%emt 0:08:02]} 9. Nf3 {[%emt 0:04:28]} dxc4 {[%emt 0:01:48]} 10. Bxc4 {[%emt 0:00:38]} Nb6 {[%emt 0:00:14]} 11. Bd3 {[%emt 0:05:58]} Bxd3 {[%emt 0:02:05]} 12. Qxd3 {[%emt 0:01:37]} Ned5 {[%emt 0:01:21]} 13. h5 {[%emt 0:12:10]} Be7 {[%emt 0:10:30]} 14. a3 {[%emt 0:06:26]} Nxc3 {[%emt 0:06:28]} 15. bxc3 {[%emt 0:05:02]} c5 {[%emt 0:00:32]} 16. Be3 {[%emt 0:05:28]} c4 {[%emt 0:03:44]} 17. Qb1 {[%emt 0:05:06]} Qd5 {[%emt 0:03:36]} 18. Kf2 {[%emt 0:02:36]} Na4 {[%emt 0:01:28]} 19. Bd2 {[%emt 0:01:45]} b5 {[%emt 0:01:26]} 20. Ke3 {[%emt 0:08:09]} a6 {[%emt 0:04:38]} 21. Qe4 {[%emt 0:04:18]} Qxe4+ {[%emt 0:05:06]} 22. Kxe4 {[%emt 0:00:03]} Kd7 {[%emt 0:00:54]} 23. f5 {[%emt 0:02:09]} Kc6 {[%emt 0:02:20]} 24. Ne1 {[%emt 0:03:53]} Nb6 {[%emt 0:06:47]} 25. Nc2 {[%emt 0:01:55]} Nd5 {[%emt 0:02:42]} 26. Rh3 {[%emt 0:02:01]} a5 {[%emt 0:03:09]} 27. Rb1 {[%emt 0:02:50]} Rab8 {[%emt 0:00:38]} 28. Rf3 {[%emt 0:04:50]} Rhg8 {[%emt 0:09:28]} 29. Rb2 {[%emt 0:01:24]} Rh8 {[%emt 0:01:02]} 30. Rb1 {[%emt 0:00:57]} Rhg8 {[%emt 0:00:34]} 1/2-1/2

[Event "Czech Juniors Girls 2024"]
[Site "Jaromerice nad Rokytnou"]
[Date "2024.03.11"]
[Round "3.2"]
[White "Markina, Sofiia"]
[Black "Fizerova, Lucie"]
[Result "1/2-1/2"]
[ECO "C07"]
[WhiteElo "1857"]
[BlackElo "1886"]
[Annotator "NA RC"]
[PlyCount "62"]
[EventDate "2024.03.10"]
[EventType "tourn"]
[EventCountry "CZE"]
[SourceTitle "playchess.com"]
[Source "ChessBase"]
[SourceQuality "1"]
[WhiteTeam "Czech Republic"]
[BlackTeam "Czech Republic"]
[WhiteTeamCountry "CZE"]
[BlackTeamCountry "CZE"]
[TimeControl "40/5400+30:1800+30"]

1. e4 {[%emt 0:00:03]} e6 {[%emt 0:00:07]} 2. d4 {[%emt 0:00:05]} d5 {[%emt 0:00:05]} 3. Nd2 {[%emt 0:00:23]} c5 {[%emt 0:00:09]} 4. exd5 {[%emt 0:01:09]} Qxd5 {[%emt 0:00:08]} 5. Ngf3 {[%emt 0:00:14]} cxd4 {[%emt 0:00:16]} 6. Bc4 {[%emt 0:00:25]} Qd6 {[%emt 0:00:12]} 7. O-O {[%emt 0:00:28]} Nf6 {[%emt 0:00:50]} 8. Nb3 {[%emt 0:00:36]} Nc6 {[%emt 0:00:22]} 9. Nbxd4 {[%emt 0:01:06]} Nxd4 {[%emt 0:00:19]} 10. Nxd4 {[%emt 0:00:06]} Be7 {[%emt 0:00:23]} 11. c3 {[%emt 0:04:30]} O-O {[%emt 0:00:14]} 12. Qf3 {[%emt 0:02:19]} Qc7 {[%emt 0:00:31]} 13. Bd3 {[%emt 0:01:55] C07: French Tarrasch: 3...c5, 4 Ngf3 and 4 exd5 Qxd5.} Bd7 {[%emt 0:01:16]} 14. Re1 {[%emt 0:03:00]} Rfd8 {[%emt 0:08:22]} 15. Bg5 {[%emt 0:04:15]} Qc5 {[%emt 0:11:00]} 16. Bh4 {[%emt 0:05:16]} b5 {[%emt 0:05:20]} 17. b4 {[%emt 0:04:47]} Qd5 {[%emt 0:08:48]} 18. Qxd5 {[%emt 0:03:47]} Nxd5 {[%emt 0:05:17]} 19. Bxe7 {[%emt 0:00:11]} Nxe7 {[%emt 0:00:06]} 20. Nxb5 {[%emt 0:13:46]} Bxb5 {[%emt 0:01:32]} 21. Bxb5 {[%emt 0:00:06]} Rab8 {[%emt 0:00:25]} (21... Rdc8 $11 {keeps the balance.}) 22. a4 {[%emt 0:06:26]} Nd5 {[%emt 0:02:40]} 23. Rec1 {[%emt 0:00:36]} Rbc8 {[%emt 0:02:07]} 24. f3 {[%emt 0:11:04]} Rxc3 {[%emt 0:03:49]} 25. Rxc3 {[%emt 0:00:40]} Nxc3 {[%emt 0:00:07]} 26. Rc1 $11 {[%emt 0:04:30]} Nxb5 {[%emt 0:03:59]} 27. axb5 {[%emt 0:00:06]} g6 {[%emt 0:03:24]} 28. Rc7 {[%emt 0:01:51]} Rd4 {[%emt 0:01:57]} 29. Rxa7 {[%emt 0:00:16]} Rxb4 {[%emt 0:00:05]} 30. Rb7 {[%emt 0:00:11]} Rb2 {[%emt 0:00:42]} 31. h3 {[%emt 0:02:01]} h5 {[%emt 0:01:28]} 1/2-1/2

[Event "Czech Juniors Girls 2024"]
[Site "Jaromerice nad Rokytnou"]
[Date "2024.03.11"]
[Round "3.3"]
[White "Sulcova, Tereza Radmila"]
[Black "Voriskova, Anna"]
[Result "0-1"]
[ECO "A01"]
[WhiteElo "1835"]
[BlackElo "1999"]
[Annotator "RC"]
[PlyCount "88"]
[EventDate "2024.03.10"]
[EventType "tourn"]
[EventCountry "CZE"]
[SourceTitle "playchess.com"]
[Source "ChessBase"]
[SourceQuality "1"]
[WhiteTeam "Czech Republic"]
[BlackTeam "Czech Republic"]
[WhiteTeamCountry "CZE"]
[BlackTeamCountry "CZE"]
[TimeControl "40/5400+30:1800+30"]

1. b3 {[%emt 0:00:06]} e5 {[%emt 0:00:06]} 2. Bb2 {[%emt 0:00:10]} Nc6 {[%emt 0:00:15]} 3. e3 {[%emt 0:00:19]} Nf6 {[%emt 0:01:08]} 4. Bb5 {[%emt 0:00:27]} Bd6 {[%emt 0:00:19]} 5. Na3 {[%emt 0:01:24]} Na5 {[%emt 0:06:22]} 6. d4 {[%emt 0:16:08]} exd4 {[%emt 0:02:48]} 7. Qxd4 {[%emt 0:02:45]} Qe7 {[%emt 0:01:52]} 8. Nb1 {[%emt 0:07:29]} Nc6 {[%emt 0:04:21]} 9. Bxc6 {[%emt 0:02:59]} dxc6 {[%emt 0:00:11]} 10. Nf3 {[%emt 0:03:28]} Bf5 {[%emt 0:07:47]} 11. O-O {[%emt 0:13:41]} O-O {[%emt 0:06:32]} 12. c4 {[%emt 0:02:49]} Rfd8 {[%emt 0:19:01]} 13. Qc3 {[%emt 0:04:46]} Be4 {[%emt 0:07:24]} 14. a3 {[%emt 0:10:38]} Bxf3 {[%emt 0:09:50]} 15. gxf3 {[%emt 0:00:09]} Re8 {[%emt 0:02:06]} 16. f4 {[%emt 0:02:15]} Qd7 {[%emt 0:00:29]} 17. Nd2 {[%emt 0:01:09]} Rad8 {[%emt 0:02:35]} 18. Rad1 {[%emt 0:02:31]} Qh3 {[%emt 0:00:35]} 19. c5 {[%emt 0:02:35]} Bxf4 {[%emt 0:07:32]} 20. exf4 {[%emt 0:10:19]} Rd3 {[%emt 0:01:01]} 21. Qxd3 {[%emt 0:00:41]} Qxd3 {[%emt 0:00:07]} 22. f3 {[%emt 0:01:22]} h6 {[%emt 0:02:39]} 23. Bxf6 {[%emt 0:02:11]} gxf6 {[%emt 0:00:04]} 24. Ne4 {[%emt 0:00:06]} Qe3+ {[%emt 0:01:51]} 25. Rf2 {[%emt 0:00:07]} Qxf4 {[%emt 0:00:58]} 26. Rd7 {[%emt 0:00:41]} Kf8 {[%emt 0:06:33]} 27. Rd3 {[%emt 0:03:55]} f5 {[%emt 0:01:47]} 28. Nd2 {[%emt 0:00:45]} Re1+ {[%emt 0:01:59]} 29. Nf1 {[%emt 0:00:14]} Qg5+ {[%emt 0:01:14]} 30. Rg2 {[%emt 0:00:27]} Qc1 {[%emt 0:00:23]} 31. Rf2 {[%emt 0:00:04]} Qxc5 {[%emt 0:00:14]} 32. f4 {[%emt 0:00:26]} Re2 {[%emt 0:01:14]} 33. Rd8+ {[%emt 0:00:53]} Ke7 {[%emt 0:00:27]} 34. Rd2 {[%emt 0:00:05]} Rxf2 {[%emt 0:00:08]} 35. Rxf2 {[%emt 0:00:05]} Qxa3 {[%emt 0:00:11]} 36. Ng3 {[%emt 0:00:12]} Qc5 {[%emt 0:00:25]} 37. Kf1 {[%emt 0:00:41]} Qb5+ {[%emt 0:01:08]} 38. Re2+ {[%emt 0:00:20]} Kf8 {[%emt 0:00:09]} 39. Kf2 {[%emt 0:00:10]} Qc5+ {[%emt 0:00:33]} 40. Kf3 {[%emt 0:00:28]} Qd5+ {[%emt 0:00:53]} 41. Kf2 {[%emt 0:30:08]} Qxb3 {[%emt 0:30:45]} 42. Nxf5 {[%emt 0:00:08]} Qb4 {[%emt 0:00:36]} 43. Kf3 {[%emt 0:00:26]} a5 {[%emt 0:00:30]} 44. Re3 {[%emt 0:00:28]} Qd2 {[%emt 0:02:14]} 0-1

[Event "Czech Juniors Girls 2024"]
[Site "Jaromerice nad Rokytnou"]
[Date "2024.03.11"]
[Round "3.4"]
[White "Jakubse, Tamae Severina"]
[Black "Petirova, Iva"]
[Result "1-0"]
[ECO "B13"]
[WhiteElo "1861"]
[BlackElo "1846"]
[Annotator "NA RC"]
[PlyCount "105"]
[EventDate "2024.03.10"]
[EventType "tourn"]
[EventCountry "CZE"]
[SourceTitle "playchess.com"]
[Source "ChessBase"]
[SourceQuality "1"]
[WhiteTeam "Czech Republic"]
[BlackTeam "Czech Republic"]
[WhiteTeamCountry "CZE"]
[BlackTeamCountry "CZE"]
[TimeControl "40/5400+30:1800+30"]

1. e4 {[%emt 0:00:03]} c6 {[%emt 0:00:14]} 2. d4 {[%emt 0:00:06]} d5 {[%emt 0:00:10]} 3. exd5 {[%emt 0:00:06]} cxd5 {[%emt 0:00:17]} 4. c4 {[%emt 0:00:05]} Nf6 {[%emt 0:00:25]} 5. Nc3 {[%emt 0:00:06]} Nc6 {[%emt 0:00:39]} 6. Nf3 {[%emt 0:00:06]} Be6 {[%emt 0:04:19] 6...a6 wird zur Hauptvariante.} 7. Qb3 {[%emt 0:01:49] B13: Caro-Kann (Abtausch-Variante 4.c4).} Na5 {[%emt 0:01:30]} 8. Qb5+ {[%emt 0:00:15]} Bd7 {[%emt 0:00:30]} 9. cxd5 {[%emt 0:00:27]} e6 {[%emt 0:00:35]} 10. Qd3 $146 {[%emt 0:03:47]} ({Predecessor:} 10. Qe2 $14 {was preferrable.} Be7 11. dxe6 Bxe6 12. Qd1 O-O 13. Be2 Rc8 14. O-O Nd5 15. Bd2 Nc4 16. Bxc4 Rxc4 {0-1 Weishaeutel,M (2387)-Kukhmazov,A (2498) Titled Tuesday intern op 16th Jan Early blitz 2024 (3)}) 10... Nxd5 {[%emt 0:02:49]} 11. Nxd5 {[%emt 0:02:03]} exd5 {[%emt 0:00:07]} 12. Be2 {[%emt 0:00:42]} Nc6 {[%emt 0:05:33]} 13. O-O {[%emt 0:01:52]} Be7 {[%emt 0:00:45]} 14. Bf4 {[%emt 0:14:05]} Nb4 {[%emt 0:06:09]} 15. Qb3 {[%emt 0:04:18]} a5 $1 {[%emt 0:04:26]} 16. a3 {[%emt 0:03:31]} a4 {[%emt 0:02:50]} 17. Qd1 {[%emt 0:00:53]} Nc6 {[%emt 0:01:34]} 18. Qd3 {[%emt 0:05:39]} h5 {[%emt 0:12:15]} 19. Ne5 {[%emt 0:08:44]} Nxe5 {[%emt 0:07:24]} 20. dxe5 {[%emt 0:01:21]} Bg5 {[%emt 0:02:10]} 21. Bxg5 {[%emt 0:03:01]} Qxg5 {[%emt 0:00:05]} 22. Qxd5 {[%emt 0:01:56]} Bc6 {[%emt 0:03:19]} 23. Bb5 {[%emt 0:00:18]} O-O {[%emt 0:00:21]} 24. Bxc6 {[%emt 0:00:29]} bxc6 {[%emt 0:00:13]} 25. Qe4 {[%emt 0:01:35]} Rab8 {[%emt 0:10:53]} 26. f4 {[%emt 0:04:03]} ({Besser ist} 26. Rab1) 26... Qg4 {[%emt 0:05:48]} 27. Rab1 {[%emt 0:06:07]} Rb3 {[%emt 0:03:53]} 28. Qxa4 {[%emt 0:05:27]} Rfb8 {[%emt 0:01:03]} 29. Qxc6 {[%emt 0:01:37]} h4 {[%emt 0:01:05]} 30. Kh1 {[%emt 0:05:05]} (30. Qe4 $142) 30... Rd8 {[%emt 0:08:17]} 31. Qc2 {[%emt 0:08:23]} Rbd3 {[%emt 0:09:23]} (31... h3 {might work better.} 32. gxh3 (32. Qxb3 $2 Qxg2#) 32... Qxh3 (32... Rxh3 $2 {is the wrong capture.} 33. Qg2 $18)) 32. h3 {[%emt 0:03:18]} Qd7 {[%emt 0:01:53]} 33. Rf2 {[%emt 0:02:23]} Rc8 {[%emt 0:01:32]} 34. Qe2 {[%emt 0:00:32]} Qd5 {[%emt 0:00:36]} 35. Kh2 {[%emt 0:02:29]} Rc6 {[%emt 0:00:29]} 36. Rbf1 {[%emt 0:01:43]} Rg6 {[%emt 0:01:18]} 37. f5 {[%emt 0:01:46]} Rg5 {[%emt 0:02:12]} 38. e6 {[%emt 0:02:30]} Qd6+ {[%emt 0:01:18]} 39. Kh1 {[%emt 0:00:30]} Rgg3 {[%emt 0:01:09]} 40. exf7+ {[%emt 0:01:10]} Kxf7 {[%emt 0:00:21]} 41. Qe6+ {[%emt 0:30:20]} Qxe6 {[%emt 0:30:11]} 42. fxe6+ {[%emt 0:00:04]} Kxe6 {[%emt 0:00:07]} 43. Rf3 {[%emt 0:00:22]} Rd2 {[%emt 0:00:00]} 44. Rxg3 {[%emt 0:00:00]} hxg3 {[%emt 0:00:00]} 45. Rb1 {[%emt 0:00:00]} Kd5 {[%emt 0:00:00]} 46. Kg1 {[%emt 0:00:00]} Kc4 $18 {[%emt 0:00:00]} 47. b4 {[%emt 0:00:00]} Ra2 {[%emt 0:00:00]} 48. b5 {[%emt 0:00:00]} Rxa3 {[%emt 0:00:00]} 49. b6 {[%emt 0:00:00]} Ra8 {[%emt 0:00:00]} 50. Kf1 {[%emt 0:00:00]} Kd4 {[%emt 0:00:00]} 51. Ke2 {[%emt 0:00:00]} Ke4 {[%emt 0:00:00]} 52. b7 {[%emt 0:00:00]} Rb8 {[%emt 0:00:00]} 53. Rb4+ {[%emt 0:00:00]} 1-0

[Event "Czech Juniors Girls 2024"]
[Site "Jaromerice nad Rokytnou"]
[Date "2024.03.11"]
[Round "3.5"]
[White "Nespora, Tatana"]
[Black "Zelbova, Lada"]
[Result "0-1"]
[ECO "B80"]
[WhiteElo "1839"]
[BlackElo "1954"]
[Annotator "ChessBase"]
[PlyCount "80"]
[EventDate "2024.03.10"]
[EventType "tourn"]
[EventCountry "CZE"]
[SourceTitle "playchess.com"]
[Source "ChessBase"]
[SourceQuality "1"]
[WhiteTeam "Czech Republic"]
[BlackTeam "Czech Republic"]
[WhiteTeamCountry "CZE"]
[BlackTeamCountry "CZE"]
[TimeControl "40/5400+30:1800+30"]

1. e4 {[%emt 0:00:11]} c5 {[%emt 0:00:05]} 2. Nf3 {[%emt 0:00:19]} d6 {[%emt 0:00:06]} 3. d4 {[%emt 0:00:16]} cxd4 {[%emt 0:00:05]} 4. Nxd4 {[%emt 0:00:08]} Nf6 {[%emt 0:00:06]} 5. Nc3 {[%emt 0:00:19]} a6 {[%emt 0:00:14]} 6. g3 {[%emt 0:00:24]} e6 {[%emt 0:03:49]} 7. Bg2 {[%emt 0:02:01]} Be7 {[%emt 0:01:23]} 8. O-O {[%emt 0:02:18]} O-O {[%emt 0:01:45]} 9. h3 {[%emt 0:02:04]} Qc7 {[%emt 0:01:03]} 10. Be3 {[%emt 0:05:28]} Nc6 {[%emt 0:01:11]} 11. Qd2 {[%emt 0:15:02]} Bd7 {[%emt 0:02:06]} 12. a4 {[%emt 0:06:21]} Rac8 {[%emt 0:09:17]} 13. Nxc6 {[%emt 0:08:20]} Bxc6 {[%emt 0:09:16]} 14. Rfd1 {[%emt 0:04:11]} b6 {[%emt 0:14:19]} 15. Qe2 {[%emt 0:05:46]} Qb7 {[%emt 0:03:11]} 16. Bf4 {[%emt 0:02:16]} Rfd8 {[%emt 0:01:36]} 17. Rd3 {[%emt 0:10:04]} d5 {[%emt 0:04:34]} 18. exd5 {[%emt 0:03:15]} exd5 {[%emt 0:02:17]} 19. Rad1 {[%emt 0:08:44]} Bb4 {[%emt 0:06:48]} 20. b3 {[%emt 0:05:35]} Re8 {[%emt 0:05:34]} 21. Qf1 {[%emt 0:02:30]} Bxc3 {[%emt 0:10:44]} 22. Rxc3 {[%emt 0:00:11]} d4 {[%emt 0:08:46]} 23. Rxc6 {[%emt 0:04:38]} Rxc6 {[%emt 0:00:13]} 24. Bxc6 {[%emt 0:00:02]} Qxc6 {[%emt 0:00:09]} 25. Qd3 {[%emt 0:00:42]} Qd5 {[%emt 0:02:14]} 26. Qxa6 {[%emt 0:03:20]} g5 {[%emt 0:01:14]} 27. Qxb6 {[%emt 0:03:25]} Qf3 {[%emt 0:01:04]} 28. Qxd4 {[%emt 0:02:32]} gxf4 {[%emt 0:00:16]} 29. Qd3 {[%emt 0:02:06]} Qh5 {[%emt 0:02:16]} 30. gxf4 {[%emt 0:00:16]} Kh8 {[%emt 0:01:00]} 31. Rc1 {[%emt 0:02:39]} Rg8+ {[%emt 0:05:06]} 32. Kf1 {[%emt 0:00:21]} h6 {[%emt 0:02:16]} 33. Qc3 {[%emt 0:00:30]} Qg6 {[%emt 0:01:07]} 34. Qg3 {[%emt 0:00:35]} Qe4 {[%emt 0:00:44]} 35. Qc3 {[%emt 0:00:36]} Qxf4 {[%emt 0:00:52]} 36. Re1 {[%emt 0:00:31]} Qg5 {[%emt 0:00:45]} 37. Qg3 {[%emt 0:00:26]} Qd5 {[%emt 0:00:27]} 38. Qd3 {[%emt 0:00:30]} Qh1+ {[%emt 0:00:23]} 39. Ke2 {[%emt 0:00:02]} Re8+ {[%emt 0:00:13]} 40. Kd1 {[%emt 0:00:10]} Qxe1# {[%emt 0:00:09]} 0-1